fUSD/lending_fUSD_20240724
["ID","MTS","AMOUNT","RATE_DAILY","PERIOD"]
[333057656,1721788234188,-139415.61390131,0.00011,2]
[333057657,1721788234200,-487.65931293,0.00011,2]
[333057658,1721788234212,-21424.43762948,0.00011,2]
[333057659,1721788234222,-1071.32430337,0.00011,2]
[333057660,1721788234233,-829.59060237,0.00011,2]
[333057661,1721788234271,-173971.37586469,0.00011,2]
[333057662,1721788237790,-1042.87152383,0.00011,2]
[333057663,1721788237801,-3116.23335189,0.00011,2]
[333057664,1721788237816,-10219.39772,0.00011,2]
[333057665,1721788237828,-2122.01916243,0.00011,2]
[333057666,1721788237934,-472.16819552,0.00011,2]
[333057667,1721788238064,-3331.41697924,0.00011,2]
[333057668,1721788238075,-3074.637,0.00011,2]
[333057669,1721788238087,-656.36,0.00011,2]
[333057719,1721788242884,-3472.4318964,0.00011,2]
[333057721,1721788243031,-1558.73438098,0.00011,2]
[333057722,1721788243177,-737.04960315,0.00011,2]
[333057723,1721788243189,-2612.63897936,0.00011,2]
[333057724,1721788243201,-1031.375,0.00011,2]
[333057725,1721788243212,-6463.52098676,0.00011,2]
[333057726,1721788245782,-286.84367584,0.00010583,2]
[333057727,1721788245791,-75179.61924121,0.000109,2]
[333057728,1721788245802,-8792.89332579,0.000109,2]
[333057729,1721788245930,-355.44249849,0.000109,2]
[333057730,1721788245942,-1837.56946926,0.000109,2]
[333057731,1721788245953,-6190.06320505,0.000109,2]
[333057732,1721788245963,-353.504,0.000109,2]
[333057733,1721788246091,-794.0033412,0.000109,2]
[333057734,1721788246102,-442.82396974,0.000109,2]
[333057735,1721788246113,-891.94150928,0.000109,2]
[333057743,1721788635067,389.21,8.238e-05,2]
[333057744,1721788663932,2511.71484846,8.238e-05,2]
[333057745,1721788669592,950.7156405,8.238e-05,2]
[333057748,1721788757921,1308.60343605,8.238e-05,2]
[333057750,1721788842919,1308.60343605,8.238e-05,2]
[333057751,1721788922930,1308.60343605,8.238e-05,2]
[333057754,1721789009945,1308.60343605,8.238e-05,2]
[333057755,1721789109939,1308.60343605,8.238e-05,2]
[333057756,1721789119935,1308.60343605,8.238e-05,2]
[333057771,1721789224163,369.74,8.219e-05,2]
[333057775,1721789245942,1308.60343605,8.238e-05,2]
[333057776,1721789326337,1310.03223826,9e-05,2]
[333057777,1721789335750,906.0,9.05e-05,2]
[333057778,1721789335955,1308.60343605,8.238e-05,2]
[333057779,1721789346338,2000.0,9e-05,2]
[333057785,1721789364180,2000.0,9e-05,2]
[333057786,1721789410438,1000.0,9.05e-05,2]
[333057823,1721789433292,-800.0,9.561e-05,2]
[333057825,1721789433302,-749.59,9.668e-05,2]
[333057827,1721789433311,-402.65,9.785e-05,2]
[333057828,1721789433321,-173.13523097,9.923e-05,2]
[333057829,1721789433331,-298.36191093,0.0001,2]
[333057830,1721789433341,-157.27422525,0.0001,2]
[333057831,1721789433350,-200.0,0.00010077,2]
[333057832,1721789433359,-150.0,0.0001011,2]
[333057833,1721789433369,-150.0,0.00010187,2]
[333057834,1721789433379,-150.0,0.00010191,2]
[333057835,1721789433388,-150.0,0.00010208,2]
[333057836,1721789433398,-150.0,0.00010246,2]
[333057837,1721789433407,-150.0,0.00010256,2]
[333057838,1721789433417,-150.0,0.00010267,2]
[333057839,1721789433427,-150.0,0.00010274,2]
[333057840,1721789433436,-150.0,0.00010305,2]
[333057841,1721789433445,-297.84239269,0.00010308,2]
[333057842,1721789433455,-150.0,0.00010328,2]
[333057843,1721789433465,-150.0,0.00010377,2]
[333057844,1721789433475,-150.0,0.00010382,2]
[333057845,1721789433485,-150.0,0.00010388,2]
[333057846,1721789433494,-150.0,0.00010425,2]
[333057847,1721789433503,-369.74,0.00010462,2]
[333057848,1721789433513,-800.0,0.00010756,2]
[333057849,1721789433523,-305.4426,0.00010799,2]
[333057850,1721789433534,-2500.0,0.000108,2]
[333057851,1721789433544,-500.0,0.00010813,2]
[333057852,1721789433554,-150.0,0.00010825,2]
[333057853,1721789433563,-2959.01075002,0.0001089,2]
[333057854,1721789433572,-830.0,0.0001089,2]
[333057855,1721789433581,-14011.17423998,0.000109,2]
[333057856,1721789433591,-181.55611135,0.000109,2]
[333057857,1721789433600,-412.52788687,0.000109,2]
[333057858,1721789433611,-300.31921246,0.000109,2]
[333057859,1721789433620,-500.0,0.000109,2]
[333057860,1721789433630,-500.0,0.000109,2]
[333057861,1721789433639,-500.0,0.000109,2]
[333057862,1721789433649,-500.0,0.000109,2]
[333057863,1721789433658,-500.0,0.000109,2]
[333057864,1721789433667,-500.0,0.000109,2]
[333057865,1721789433676,-500.0,0.000109,2]
[333057866,1721789433686,-500.0,0.000109,2]
[333057867,1721789433695,-500.0,0.000109,2]
[333057868,1721789433704,-500.0,0.000109,2]
[333057869,1721789433714,-500.0,0.000109,2]
[333057870,1721789433723,-500.0,0.000109,2]
[333057871,1721789433733,-500.0,0.000109,2]
[333057872,1721789433743,-500.0,0.000109,2]
[333057873,1721789433751,-503.46,0.000109,2]
[333057874,1721789433760,-206.1664,0.000109,2]
[333057875,1721789433770,-500.0,0.000109,2]
[333057876,1721789433779,-500.0,0.000109,2]
[333057877,1721789433788,-500.0,0.000109,2]
[333057878,1721789433797,-500.0,0.000109,2]
[333057879,1721789433806,-500.0,0.000109,2]
[333057880,1721789433816,-500.0,0.000109,2]
[333057881,1721789433825,-500.0,0.000109,2]
[333057882,1721789433834,-412.3787,0.000109,2]
[333057883,1721789433843,-500.0,0.000109,2]
[333057884,1721789433853,-500.0,0.000109,2]
[333057885,1721789433862,-500.0,0.000109,2]
[333057886,1721789433871,-500.0,0.000109,2]
[333057887,1721789433880,-500.0,0.000109,2]
[333057888,1721789433890,-500.0,0.000109,2]
[333057889,1721789433899,-500.0,0.000109,2]
[333057890,1721789433908,-500.0,0.000109,2]
[333057891,1721789433917,-500.0,0.000109,2]
[333057892,1721789433926,-500.0,0.000109,2]
[333057893,1721789433936,-500.0,0.000109,2]
[333057894,1721789433945,-500.0,0.000109,2]
[333057895,1721789433954,-500.0,0.000109,2]
[333057896,1721789433964,-500.0,0.000109,2]
[333057897,1721789433973,-500.0,0.000109,2]
[333057898,1721789433983,-500.0,0.000109,2]
[333057899,1721789433992,-500.0,0.000109,2]
[333057900,1721789434002,-500.0,0.000109,2]
[333057901,1721789434011,-500.0,0.000109,2]
[333057902,1721789434020,-500.0,0.000109,2]
[333057903,1721789434030,-500.0,0.000109,2]
[333057904,1721789434039,-500.0,0.000109,2]
[333057905,1721789434048,-500.0,0.000109,2]
[333057906,1721789434057,-500.0,0.000109,2]
[333057907,1721789434066,-500.0,0.000109,2]
[333057908,1721789434075,-503.28,0.000109,2]
[333057909,1721789434085,-500.0,0.000109,2]
[333057910,1721789434094,-500.0,0.000109,2]
[333057911,1721789434103,-500.0,0.000109,2]
[333057912,1721789434113,-500.0,0.000109,2]
[333057913,1721789434122,-500.0,0.000109,2]
[333057914,1721789434131,-500.0,0.000109,2]
[333057915,1721789434140,-500.0,0.000109,2]
[333057916,1721789434149,-500.0,0.000109,2]
[333057917,1721789434158,-500.0,0.000109,2]
[333057918,1721789434169,-500.0,0.000109,2]
[333057919,1721789434179,-500.0,0.000109,2]
[333057920,1721789434189,-500.0,0.000109,2]
[333057921,1721789434198,-500.0,0.000109,2]
[333057922,1721789434207,-500.0,0.000109,2]
[333057923,1721789434217,-500.0,0.000109,2]
[333057924,1721789434226,-500.0,0.000109,2]
[333057925,1721789434237,-500.0,0.000109,2]
[333057926,1721789434247,-500.0,0.000109,2]
[333057927,1721789434256,-500.0,0.000109,2]
[333057928,1721789434265,-500.0,0.000109,2]
[333057929,1721789434274,-500.0,0.000109,2]
[333057930,1721789434284,-500.0,0.000109,2]
[333057931,1721789434293,-500.0,0.000109,2]
[333057932,1721789434302,-500.0,0.000109,2]
[333057933,1721789434311,-500.0,0.000109,2]
[333057934,1721789434320,-500.0,0.000109,2]
[333057935,1721789434330,-500.0,0.000109,2]
[333057936,1721789434340,-500.0,0.000109,2]
[333057937,1721789434350,-500.0,0.000109,2]
[333057938,1721789434360,-500.0,0.000109,2]
[333057939,1721789434369,-500.0,0.000109,2]
[333057940,1721789434378,-500.0,0.000109,2]
[333057941,1721789434387,-500.0,0.000109,2]
[333057942,1721789434397,-500.0,0.000109,2]
[333057943,1721789434406,-500.0,0.000109,2]
[333057944,1721789434415,-312.39,0.000109,2]
[333057945,1721789434425,-500.0,0.000109,2]
[333057946,1721789434434,-500.0,0.000109,2]
[333057947,1721789434444,-500.0,0.000109,2]
[333057948,1721789434453,-500.0,0.000109,2]
[333057949,1721789434464,-500.0,0.000109,2]
[333057950,1721789434473,-500.0,0.000109,2]
[333057951,1721789434482,-500.0,0.000109,2]
[333057952,1721789434497,-500.0,0.000109,2]
[333057953,1721789434506,-500.0,0.000109,2]
[333057954,1721789434515,-500.0,0.000109,2]
[333057955,1721789434525,-500.0,0.000109,2]
[333057956,1721789434534,-500.0,0.000109,2]
[333057957,1721789434544,-500.0,0.000109,2]
[333057958,1721789434554,-500.0,0.000109,2]
[333057959,1721789434563,-500.0,0.000109,2]
[333057960,1721789434573,-500.0,0.000109,2]
[333057961,1721789434583,-500.0,0.000109,2]
[333057962,1721789434592,-500.0,0.000109,2]
[333057963,1721789434601,-500.0,0.000109,2]
[333057964,1721789434611,-500.0,0.000109,2]
[333057965,1721789434621,-408.97,0.000109,2]
[333057966,1721789434631,-500.0,0.000109,2]
[333057967,1721789434640,-500.0,0.000109,2]
[333057968,1721789434649,-1487.511,0.000109,2]
[333057969,1721789434660,-500.0,0.000109,2]
[333057970,1721789434669,-168.02255607,0.000109,2]
[333057971,1721789434678,-36363.5574088,0.000109,2]
[333057972,1721789434687,-146984.83989017,0.000109,2]
[333057973,1721789434697,-126160.11089931,0.000109,2]
[333057974,1721789435139,1308.60343605,9e-05,2]
[333057975,1721789438469,-4603.08190485,0.000109,2]
[333057976,1721789438727,-538.77559219,0.000109,2]
[333057979,1721789438739,-31525.03160365,0.000109,2]
[333057981,1721789438747,-161.50489176,0.000109,2]
[333057982,1721789438757,-150.0,0.00010947,2]
[333057984,1721789438766,-200.0,0.00010959,2]
[333057986,1721789438775,-200.0,0.00010959,2]
[333057988,1721789438784,-200.0,0.00010959,2]
[333057990,1721789438793,-200.0,0.00010959,2]
[333057992,1721789438802,-200.0,0.00010959,2]
[333057994,1721789438811,-200.0,0.00010959,2]
[333057996,1721789438820,-200.0,0.00010959,2]
[333057998,1721789438830,-200.0,0.00010959,2]
[333057999,1721789438839,-709.87,0.00010959,2]
[333058000,1721789438848,-232.76996452,0.00010959,2]
[333058001,1721789438857,-150.0,0.00010989,2]
[333058002,1721789438866,-412.276754,0.00010991,2]
[333058003,1721789438875,-150.0,0.00010993,2]
[333058004,1721789438884,-953.51989931,0.00010999,2]
[333058005,1721789438893,-76221.8873084,0.00011,2]
[333058006,1721789438904,-45284.30879977,0.00011,2]
[333058008,1721789439997,-599.78281266,0.00011,2]
[333058009,1721789440009,-1138.16849514,0.00011,2]
[333058010,1721789440022,-860.79,0.00011,2]
[333058011,1721789440513,-863.3110572,0.00011,2]
[333058079,1721789443086,-13494.45838435,0.00011,2]
[333058086,1721789446286,-627.47018711,0.000108,2]
[333058087,1721789446296,-476.75994966,0.00010999,2]
[333058088,1721789446307,-5069.47106323,0.00011,2]
[333058089,1721789446320,-5511.2815,0.00011,2]
[333058689,1721789456938,-198.2441,0.000109,2]
[333058690,1721789456959,-275.87034927,0.00010909,2]
[333058691,1721789456980,-151.56211982,0.00010999,2]
[333058692,1721789457002,-238.37997483,0.00010999,2]
[333058693,1721789457027,-2852450.16995258,0.00011,2]
[333058694,1721789457053,-1606908.42296104,0.00011,2]
[333058695,1721789457074,-205.17,0.00011,2]
[333058696,1721789457099,-1852204.96439194,0.00011,2]
[333058697,1721789457121,-1250.0,0.00011,2]
[333058698,1721789457142,-36363.5574088,0.00011,2]
[333058699,1721789457164,-831.0256,0.00011,2]
[333058700,1721789457193,-146984.83989015,0.00011,2]
[333058701,1721789457213,-357.0,0.00011,2]
[333058702,1721789457236,-11278.87080517,0.00011,2]
[333058703,1721789457257,-693.7166387,0.0001104,2]
[333058704,1721789457278,-20975.0029944,0.00011048,2]
[333058705,1721789457299,-175.26544091,0.00011055,2]
[333058706,1721789457318,-155.614539,0.00011095,2]
[333058707,1721789457339,-151.0,0.00011095,2]
[333058708,1721789457358,-36363.5574088,0.000111,2]
[333058709,1721789457381,-1000.0,0.000111,2]
[333058710,1721789457401,-146984.83989015,0.000111,2]
[333058711,1721789457422,-225.0,0.000111,2]
[333058712,1721789457443,-484.62726921,0.00011105,2]
[333058713,1721789457463,-155.0,0.00011105,2]
[333058714,1721789457485,-254.78853267,0.00011105,2]
[333058715,1721789457511,-342.16720055,0.00011105,2]
[333058716,1721789457532,-270.25397008,0.00011105,2]
[333058717,1721789457552,-379.90987956,0.00011105,2]
[333058718,1721789457572,-155.0,0.00011105,2]
[333058719,1721789457592,-414.07403519,0.00011105,2]
[333058720,1721789457612,-2383.46831961,0.00011105,2]
[333058721,1721789457632,-155.0,0.00011105,2]
[333058722,1721789457652,-155.75767087,0.00011105,2]
[333058723,1721789457672,-155.0,0.00011105,2]
[333058724,1721789457693,-155.0,0.00011105,2]
[333058725,1721789457713,-5000.0,0.00011105,2]
[333058726,1721789457735,-2837.89406693,0.00011105,2]
[333058727,1721789457756,-3078.607379,0.00011105,2]
[333058728,1721789457777,-15465.42611923,0.00011105,2]
[333058729,1721789457798,-2143.52168912,0.00011105,2]
[333058730,1721789457819,-10530.80114964,0.00011105,2]
[333058731,1721789457839,-5320.70599634,0.00011105,2]
[333058732,1721789457859,-5834.2901182,0.00011105,2]
[333058733,1721789457880,-4471.6772674,0.00011105,2]
[333058734,1721789457901,-9259.73193231,0.00011105,2]
[333058735,1721789457921,-156.91168009,0.00011105,2]
[333058736,1721789457941,-5397.51614816,0.00011105,2]
[333058737,1721789457961,-1267.5684176,0.00011105,2]
[333058738,1721789457986,-3117.1338451,0.00011105,2]
[333058739,1721789458006,-157.05432231,0.00011105,2]
[333058740,1721789458026,-3400.41607014,0.00011105,2]
[333058741,1721789458046,-2500.16370374,0.00011105,2]
[333058742,1721789458067,-2206.59920799,0.00011105,2]
[333058743,1721789458088,-719.14188112,0.00011105,2]
[333058744,1721789458109,-1500.0,0.00011105,2]
[333058745,1721789458130,-2379.12605002,0.00011105,2]
[333058746,1721789458151,-298.29388542,0.00011105,2]
[333058747,1721789458172,-1137.7534592,0.00011105,2]
[333058748,1721789458197,-539.24588103,0.00011105,2]
[333058749,1721789458219,-267.02011989,0.00011105,2]
[333058750,1721789458240,-155.0,0.00011105,2]
[333058751,1721789458260,-1274.07752691,0.00011105,2]
[333058752,1721789458282,-1296.72947417,0.00011105,2]
[333058753,1721789458303,-1073.43313822,0.00011105,2]
[333058754,1721789458324,-155.0,0.00011105,2]
[333058755,1721789458345,-155.0,0.00011105,2]
[333058756,1721789458367,-1183.70663103,0.00011105,2]
[333058757,1721789458388,-1049.36044464,0.00011105,2]
[333058758,1721789458409,-196.42941276,0.00011105,2]
[333058759,1721789458430,-199.08231196,0.00011105,2]
[333058760,1721789458452,-276.69836678,0.00011105,2]
[333058761,1721789458473,-155.0,0.00011105,2]
[333058762,1721789458497,-179.74833659,0.00011105,2]
[333058763,1721789458519,-531.66473382,0.00011105,2]
[333058764,1721789458540,-722.57761402,0.00011105,2]
[333058765,1721789458561,-686.21541114,0.00011105,2]
[333058766,1721789458582,-365.20312364,0.00011105,2]
[333058767,1721789458605,-959.08617395,0.00011105,2]
[333058768,1721789458628,-600.01830648,0.00011105,2]
[333058769,1721789458649,-649.10789177,0.00011105,2]
[333058770,1721789458670,-236.06369741,0.00011105,2]
[333058771,1721789458690,-196.89824652,0.00011105,2]
[333058772,1721789458710,-155.0,0.00011105,2]
[333058773,1721789458732,-276.69675869,0.00011105,2]
[333058774,1721789458753,-158.81532317,0.00011105,2]
[333058775,1721789458774,-218.65328672,0.00011105,2]
[333058776,1721789458795,-164.20932058,0.00011105,2]
[333058777,1721789458817,-164.18426229,0.00011105,2]
[333058778,1721789458838,-329.58624283,0.00011105,2]
[333058779,1721789458859,-155.0,0.00011105,2]
[333058780,1721789458880,-439.57805419,0.00011105,2]
[333058781,1721789458902,-203.17152502,0.00011105,2]
[333058782,1721789458923,-493.07204629,0.00011105,2]
[333058783,1721789458944,-367.42834681,0.00011105,2]
[333058784,1721789458965,-281.45287903,0.00011105,2]
[333058785,1721789458989,-155.0,0.00011105,2]
[333058786,1721789459011,-308.92570117,0.00011105,2]
[333058787,1721789459032,-528.31525612,0.00011105,2]
[333058788,1721789459053,-347.26603945,0.00011105,2]
[333058789,1721789459074,-265.14078474,0.00011105,2]
[333058790,1721789459094,-159.41834752,0.00011105,2]
[333058791,1721789459115,-155.0,0.00011105,2]
[333058792,1721789459135,-155.0,0.00011105,2]
[333058793,1721789459156,-242.96573529,0.00011105,2]
[333058794,1721789459179,-155.0,0.00011105,2]
[333058795,1721789459203,-155.0,0.00011105,2]
[333058796,1721789459224,-155.0,0.00011105,2]
[333058797,1721789459245,-431.97601282,0.00011105,2]
[333058798,1721789459268,-155.0,0.00011105,2]
[333058799,1721789459290,-191.70982043,0.00011105,2]
[333058800,1721789459311,-1994.15497256,0.00011105,2]
[333058801,1721789459332,-155.0,0.00011105,2]
[333058802,1721789459353,-357.54995177,0.00011105,2]
[333058803,1721789459375,-155.07690929,0.00011105,2]
[333058804,1721789459396,-161.47458176,0.00011105,2]
[333058805,1721789459417,-155.0,0.00011105,2]
[333058806,1721789459439,-155.08696033,0.00011105,2]
[333058807,1721789459460,-363.77204269,0.00011105,2]
[333058808,1721789459482,-155.13742359,0.00011105,2]
[333058809,1721789459503,-463.06723591,0.00011105,2]
[333058810,1721789459524,-155.07087708,0.00011105,2]
[333058811,1721789459545,-171.86591934,0.00011105,2]
[333058812,1721789459566,-299.71868576,0.00011105,2]
[333058813,1721789459586,-161.62903779,0.00011105,2]
[333058814,1721789459607,-947.3593045,0.00011105,2]
[333058815,1721789459630,-3066.98043627,0.00011105,2]
[333058816,1721789459651,-155.46735729,0.00011105,2]
[333058817,1721789459672,-634.08635792,0.00011105,2]
[333058818,1721789459692,-1826.86943,0.00011129,2]
[333058819,1721789459713,-8274.108725,0.00011129,2]
[333058820,1721789459735,-192.155264,0.00011129,2]
[333058821,1721789459756,-5370.279638,0.00011129,2]
[333058822,1721789459777,-412.276754,0.00011129,2]
[333058823,1721789459798,-165.57107,0.00011174,2]
[333058824,1721789459820,-151.0,0.0001118,2]
[333058825,1721789459840,-1254.0,0.0001118,2]
[333058826,1721789459861,-362.0,0.0001118,2]
[333058827,1721789459881,-1829.0,0.0001118,2]
[333058828,1721789459901,-1664.0,0.0001118,2]
[333058829,1721789459921,-446.654,0.0001118,2]
[333058830,1721789459942,-450.0,0.0001118,2]
[333058831,1721789459962,-621.0,0.0001118,2]
[333058832,1721789459982,-810.0,0.0001118,2]
[333058833,1721789460189,-550.0,0.0001118,2]
[333058834,1721789460211,-2383.0,0.0001118,2]
[333058835,1721789460236,-1985.401,0.0001118,2]
[333058836,1721789460258,-3284.0,0.0001118,2]
[333058837,1721789460281,-150.034,0.0001118,2]
[333058838,1721789460303,-190.924,0.0001118,2]
[333058839,1721789460325,-192.118,0.0001118,2]
[333058840,1721789460347,-24767.52746557,0.00011186,2]
[333058841,1721789460369,-22632.54477607,0.00011186,2]
[333058842,1721789460390,-28091.26787554,0.00011186,2]
[333058843,1721789460412,-25294.2604552,0.00011186,2]
[333058844,1721789460434,-151.0,0.00011196,2]
[333058845,1721789460455,-36363.5574088,0.000112,2]
[333058846,1721789460476,-146984.83989015,0.000112,2]
[333058847,1721789460499,-759.64523177,0.00011206,2]
[333058848,1721789460520,-1826.86943,0.00011266,2]
[333058849,1721789460541,-8274.108725,0.00011266,2]
[333058850,1721789460562,-192.155264,0.00011266,2]
[333058851,1721789460584,-5370.279638,0.00011266,2]
[333058852,1721789460606,-412.276754,0.00011266,2]
[333058853,1721789460628,-151.0,0.00011297,2]
[333058854,1721789460649,-36363.5574088,0.000113,2]
[333058855,1721789460671,-146984.83989015,0.000113,2]
[333058856,1721789460692,-200.0,0.00011336,2]
[333058857,1721789460713,-161.50489176,0.0001135,2]
[333058858,1721789460735,-165.57107,0.00011358,2]
[333058859,1721789460761,-151.0,0.00011397,2]
[333058860,1721789460783,-175.26544091,0.00011399,2]
[333058861,1721789460805,-36363.5574088,0.000114,2]
[333058862,1721789460826,-146984.83989015,0.000114,2]
[333058863,1721789460846,-1826.86943,0.00011403,2]
[333058864,1721789460867,-8274.108725,0.00011403,2]
[333058865,1721789460886,-192.155264,0.00011403,2]
[333058866,1721789460907,-5370.279638,0.00011403,2]
[333058867,1721789460928,-412.276754,0.00011403,2]
[333058868,1721789460948,-151.0,0.00011498,2]
[333058869,1721789460970,-758113.47,0.000115,2]
[333058870,1721789460993,-151.0,0.000115,2]
[333058871,1721789461014,-36363.5574088,0.000115,2]
[333058872,1721789461034,-146984.83989015,0.000115,2]
[333058873,1721789461054,-380.36273378,0.00011505,2]
[333058874,1721789461074,-500.0,0.00011506,2]
[333058875,1721789461094,-500.0,0.00011506,2]
[333058876,1721789461114,-500.0,0.00011506,2]
[333058877,1721789461134,-500.0,0.00011506,2]
[333058878,1721789461154,-500.0,0.00011506,2]
[333058879,1721789461175,-500.0,0.00011506,2]
[333058880,1721789461198,-500.0,0.00011506,2]
[333058881,1721789461218,-500.0,0.00011506,2]
[333058882,1721789461241,-500.0,0.00011506,2]
[333058883,1721789461262,-500.0,0.00011506,2]
[333058884,1721789461283,-500.0,0.00011506,2]
[333058885,1721789461303,-168.9987765,0.00011506,2]
[333058886,1721789461324,-620.69984928,0.00011506,2]
[333058887,1721789461344,-517.52519536,0.00011506,2]
[333058888,1721789461366,-508.13472764,0.00011506,2]
[333058889,1721789461386,-581.50935327,0.00011506,2]
[333058890,1721789461407,-500.0,0.00011506,2]
[333058891,1721789461428,-500.0,0.00011506,2]
[333058892,1721789461449,-260.57,0.00011506,2]
[333058893,1721789461470,-500.0,0.00011506,2]
[333058894,1721789461493,-300.94017155,0.00011506,2]
[333058895,1721789461514,-510.91072185,0.00011506,2]
[333058896,1721789461535,-518.62458057,0.00011506,2]
[333058897,1721789461556,-522.07064834,0.00011506,2]
[333058898,1721789461577,-500.0,0.00011506,2]
[333058899,1721789461598,-503.81201162,0.00011506,2]
[333058900,1721789461619,-509.57327926,0.00011506,2]
[333058901,1721789461640,-531.32153224,0.00011506,2]
[333058902,1721789461661,-500.0,0.00011506,2]
[333058903,1721789461681,-283.16879872,0.00011506,2]
[333058904,1721789461702,-627.09545283,0.00011506,2]
[333058905,1721789461722,-500.0,0.00011506,2]
[333058906,1721789461744,-499.18695415,0.00011506,2]
[333058907,1721789461765,-504.86290597,0.00011506,2]
[333058908,1721789461806,-512.39888368,0.00011506,2]
[333058909,1721789461828,-508.74634179,0.00011506,2]
[333058910,1721789461848,-505.94346301,0.00011506,2]
[333058911,1721789461869,-512.35612158,0.00011506,2]
[333058912,1721789461890,-504.40753526,0.00011506,2]
[333058913,1721789461913,-581.17844788,0.00011506,2]
[333058914,1721789461935,-507.33643177,0.00011506,2]
[333058915,1721789461958,-511.27438704,0.00011506,2]
[333058916,1721789461979,-507.1357012,0.00011506,2]
[333058917,1721789462001,-500.0,0.00011506,2]
[333058918,1721789462022,-326.6894912,0.00011506,2]
[333058919,1721789462042,-560.58702687,0.00011506,2]
[333058920,1721789462063,-329.62691579,0.00011506,2]
[333058921,1721789462084,-508.96580221,0.00011506,2]
[333058922,1721789462105,-500.0,0.00011506,2]
[333058923,1721789462127,-500.0,0.00011506,2]
[333058924,1721789462149,-500.0,0.00011506,2]
[333058925,1721789462171,-500.0,0.00011506,2]
[333058926,1721789462199,-500.0,0.00011506,2]
[333058927,1721789462223,-500.0,0.00011506,2]
[333058928,1721789462246,-500.0,0.00011506,2]
[333058929,1721789462269,-500.0,0.00011506,2]
[333058930,1721789462292,-500.0,0.00011506,2]
[333058931,1721789462320,-500.0,0.00011506,2]
[333058932,1721789462342,-500.0,0.00011506,2]
[333058933,1721789462364,-500.0,0.00011506,2]
[333058934,1721789462387,-500.0,0.00011506,2]
[333058935,1721789462412,-500.0,0.00011506,2]
[333058936,1721789462435,-500.0,0.00011506,2]
[333058937,1721789462457,-500.0,0.00011506,2]
[333058938,1721789462480,-564.93027355,0.00011506,2]
[333058939,1721789462507,-500.0,0.00011506,2]
[333058940,1721789462530,-333.36664495,0.00011506,2]
[333058941,1721789462551,-500.0,0.00011506,2]
[333058942,1721789462573,-500.0,0.00011506,2]
[333058943,1721789462598,-393.90226658,0.00011506,2]
[333058944,1721789462620,-315.75602948,0.00011506,2]
[333058945,1721789462644,-500.0,0.00011506,2]
[333058946,1721789462665,-500.0,0.00011506,2]
[333058947,1721789462687,-197.67119942,0.00011506,2]
[333058948,1721789462712,-189.08907558,0.00011506,2]
[333058949,1721789462735,-514.11763177,0.00011506,2]
[333058950,1721789462757,-194.85526745,0.00011506,2]
[333058951,1721789462779,-513.30276347,0.00011506,2]
[333058952,1721789462801,-374.89414854,0.00011506,2]
[333058953,1721789462822,-508.27955073,0.00011506,2]
[333058954,1721789462844,-512.44808973,0.00011506,2]
[333058955,1721789462866,-573.2446796,0.00011506,2]
[333058956,1721789462893,-510.53234968,0.00011506,2]
[333058957,1721789462916,-500.0,0.00011506,2]
[333058958,1721789462942,-327.87437803,0.00011506,2]
[333058959,1721789462964,-526.86840387,0.00011506,2]
[333058960,1721789462990,-510.45325313,0.00011506,2]
[333058961,1721789463012,-512.40634261,0.00011506,2]